Workbook

Sheet Budget
A1: Organisation Name
A2: Budget for: April 202X - March 202X
B4: Year 1 | C4: Year 2 | D4: Year 3 | F4: Total over 3 years
A5: Income
A6: Foundation North (this application) | B6: $100,000 | C6: $100,000 | D6: $100,000 | F6: =B6+C6+D6 -> $300,000
A7: Lottery Community (unconfirmed) | B7: $70,000 | C7: $70,000 | D7: $70,000 | F7: =B7+C7+D7 -> $210,000
A8: XZY Foundation (unconfirmed) | B8: $40,000 | C8: $40,000 | D8: $40,000 | F8: =B8+C8+D8 -> $120,000
A9: COGS (confirmed) | B9: $5,000 | C9: $5,000 | D9: $5,000 | F9: =B9+C9+D9 -> $15,000
A10: Other gaming Charity (confirmed) | B10: $15,000 | C10: 0 | D10: 0 | F10: $15,000
A11: Donations (estimated) | B11: $20,000 | C11: $21,000 | D11: $22,000 | F11: =B11+C11+D11 -> $63,000
A12: Gala fundraiser (estimated) *1 | B12: $30,000 | D12: $40,000 | F12: =B12+C12+D12 -> $70,000
F13: =B13+C13+D13 -> 0
A14: Total Income | B14: =SUM(B6:B13) -> $280,000 | C14: $236,000 | D14: =SUM(D6:D13) -> $277,000 | F14: =SUM(F6:F13) -> $793,000
A16: Operating costs | F16: Column1
A17: Management salary | B17: $75,000 | C17: $77,500 | D17: $80,000 | F17: =B17+C17+D17 -> $232,500
A18: Administration salary | B18: $50,000 | C18: $50,000 | D18: $50,000 | F18: =B18+C18+D18 -> $150,000
A19: Office rent | B19: $25,000 | C19: $25,000 | D19: $25,000 | F19: =B19+C19+D19 -> $75,000
A20: Cleaning | B20: $5,000 | C20: $5,000 | D20: $5,000 | F20: =B20+C20+D20 -> $15,000
A21: Utilities (power, internet, insurance) | B21: $4,000 | C21: $4,250 | D21: $4,500 | F21: =B21+C21+D21 -> $12,750
F22: =B22+C22+D22 -> 0
A23: ="Total "&A16 -> Total Operating costs | B23: =SUM(B17:B22) -> $159,000 | C23: =SUM(C17:C22) -> $161,750 | D23: =SUM(D17:D22) -> $164,500 | F23: =SUM(F17:F22) -> $485,250
A25: Programme costs | F25: Column1
A26: Programme Facilitator salary | B26: $35,000 | C26: $37,500 | D26: $40,000 | F26: =B26+C26+D26 -> $112,500
A27: Van Lease (see quote attached) | B27: $8,000 | C27: $8,000 | D27: $8,000 | F27: =B27+C27+D27 -> $24,000
A28: Travel costs (insurance, petrol, car maintenance etc) | B28: $3,000 | C28: $3,000 | D28: $3,000 | F28: =B28+C28+D28 -> $9,000
A29: Programme costs - kai, volunteer koha, etc | B29: $2,500 | C29: $3,000 | D29: $3,500 | F29: =B29+C29+D29 -> $9,000
F30: =B30+C30+D30 -> 0
A31: ="Total "&A25 -> Total Programme costs | B31: =SUM(B26:B30) -> $48,500 | C31: =SUM(C26:C30) -> $51,500 | D31: =SUM(D26:D30) -> $54,500 | F31: =SUM(F26:F30) -> $154,500
A33: Capacity and capability costs | F33: Column1
A34: Strategy Wānanga | B34: $20,000 | C34: 0 | D34: $20,000 | F34: =B34+C34+D34 -> $40,000
A35: Professional Development | B35: $10,000 | C35: $10,000 | D35: $10,000 | F35: =B35+C35+D35 -> $30,000
A36: Social Enterprise Research | B36: $20,000 | C36: $20,000 | D36: $10,000 | F36: =B36+C36+D36 -> $50,000
A37: Social Enterprise Seeding | B37: 0 | D37: $20,000 | F37: =B37+C37+D37 -> $20,000
A38: New website | B38: $20,000 | C38: 0 | D38: 0 | F38: =B38+C38+D38 -> $20,000
F39: =B39+C39+D39 -> 0
A40: ="Total "&A33 -> Total Capacity and capability costs | B40: =SUM(B34:B39) -> $70,000 | C40: =SUM(C34:C39) -> $30,000 | D40: =SUM(D34:D39) -> $60,000 | F40: =SUM(F34:F39) -> $160,000
A43: Total Expenses | B43: =B40+B31+B23 -> $277,500 | C43: =C40+C31+C23 -> $243,250 | D43: $279,000 | F43: =F40+F31+F23 -> $799,750
A45: Net profit (loss) | B45: =B14-B43 -> $2,500 | C45: =C14-C43 -> $(7,250) | D45: =D14-D43 -> $(2,000) | F45: =F14-F43 -> $(6,750)
A47: Notes (*) | B47: Description
A48: 1 | B48: The Gala is only held every second year. Run to fund our strategy wānanga and special projects in those years
A49: 2
A50: 3
A51: 4
A52: 5
A53: 6
A54: 7

Sheet Lists
A2: Operating costs
A3: Programme costs
A4: Project costs
A5: Equipment
A6: Capacity and capability costs

Sheet Cost Item Table example
B2: Cost Items | H2: Click the green plus to add a new Cost Item line below
E4: Edit
B5: Cost Item | C5: Desciption of Item | D5: Total Cost | E5: Foundation North Requested
B6: Operating Costs | C6: Year 1 | D6: =Budget!B23 -> $159,000 | E6: Enter how much you are requesting towards this...
E8: Edit | H8: Click the blue edit link to change the Cost Item line
B9: Cost Item | C9: Desciption of Item | D9: Total Cost | E9: Foundation North Requested
B10: Operating Costs | C10: Year 2 | D10: =Budget!C23 -> $161,750 | E10: Enter how much you are requesting towards this...
E12: Edit
B13: Cost Item | C13: Desciption of Item | D13: Total Cost | E13: Foundation North Requested
B14: Operating Costs | C14: Year 3 | D14: =Budget!D23 -> $164,500 | E14: Enter how much you are requesting towards this...
E16: Edit
B17: Cost Item | C17: Desciption of Item | D17: Total Cost | E17: Foundation North Requested
B18: Programme Costs | C18: Year 1 | D18: =Budget!B31 -> $48,500 | E18: Enter how much you are requesting towards this...
E20: Edit
B21: Cost Item | C21: Desciption of Item | D21: Total Cost | E21: Foundation North Requested
B22: Programme Costs | C22: Year 2 | D22: =Budget!C31 -> $51,500 | E22: Enter how much you are requesting towards this...
E24: Edit
B25: Cost Item | C25: Desciption of Item | D25: Total Cost | E25: Foundation North Requested
B26: Programme Costs | C26: Year 3 | D26: =Budget!D31 -> $54,500 | E26: Enter how much you are requesting towards this...
E28: Edit
B29: Cost Item | C29: Desciption of Item | D29: Total Cost | E29: Foundation North Requested
B30: Capacity and Capability | C30: New website in Year 1 | D30: =Budget!B38 -> $20,000 | E30: Enter how much you are requesting towards this...
B34: This is the type of expense - select from the Drop Down options in the funding hub. | C34: Enter the Year this line relates too - you must have a line for each year you are requesting a cost for. (Its OK to request a mixture of one year and multi-year items) | D34: This is the total of the type of expense from your budget. (These values have been copied from your budget in the first tab!) | E34: Tell us how much you are requesting from Foundation North towards each expense type.
